[Event "47th GRE-chT 2019"]
[Site "Patra"]
[Date "2019.07.04"]
[Round "4.25"]
[White "Grapsa, Georgia"]
[Black "Salahidou, Reveka"]
[Result "1-0"]
[ECO "E04"]
[WhiteElo "2038"]
[BlackElo "1971"]
[Annotator "NA"]
[PlyCount "91"]
[EventDate "2019.07.02"]
[EventCountry "GRE"]
[SourceTitle "playchess.com"]
[Source "ChessBase"]
[SourceQuality "1"]
[TimeControl "5400+30"]

1. d4 {[%emt 0:00:00]} d5 {[%emt 0:00:00]} 2. Nf3 {[%emt 0:00:00]} e6 {[%emt 0:00:00]} 3. c4 {[%emt 0:00:00]} Nf6 {[%emt 0:00:00]} 4. g3 {[%emt 0:00:00]} dxc4 {[%emt 0:00:02]} 5. Bg2 {[%emt 0:00:00]} a6 {[%emt 0:00:09]} 6. O-O {[%emt 0:00:53]} Be7 {[%emt 0:07:08]} 7. Ne5 {[%emt 0:02:20]} Ra7 {[%emt 0:01:22]} 8. a4 {[%emt 0:02:42]} O-O {[%emt 0:10:45]} 9. Nc3 {[%emt 0:07:48]} b6 {[%emt 0:06:00]} 10. e4 {[%emt 0:07:25]} c6 {[%emt 0:08:15]} 11. Be3 {[%emt 0:05:16]} Rb7 {[%emt 0:12:24]} 12. Nxc4 {[%emt 0:05:28]} b5 {[%emt 0:01:46]} 13. axb5 {[%emt 0:00:12]} axb5 {[%emt 0:00:17]} 14. Ne5 {[%emt 0:04:54]} Qc7 {[%emt 0:19:17]} 15. Bf4 {[%emt 0:07:02]} Qb6 {[%emt 0:04:58]} 16. d5 {[%emt 0:10:09]} Rd8 {[%emt 0:14:05]} 17. Qb3 {[%emt 0:12:49]} c5 {[%emt 0:08:31]} 18. Ra8 {[%emt 0:01:15]} c4 {[%emt 0:03:19]} 19. Nxc4 {[%emt 0:07:22]} bxc4 {[%emt 0:00:14]} 20. Qxb6 {[%emt 0:00:06]} Rxb6 {[%emt 0:00:04]} 21. Rxb8 {[%emt 0:00:37]} Rxb8 {[%emt 0:00:21]} 22. Bxb8 {[%emt 0:00:04]} exd5 {[%emt 0:00:05]} 23. exd5 {[%emt 0:04:24]} Bb7 {[%emt 0:01:54]} 24. Re1 {[%emt 0:10:02]} Bb4 {[%emt 0:00:32]} 25. Bc7 {[%emt 0:01:22]} Rd7 {[%emt 0:00:16]} 26. Be5 {[%emt 0:02:19]} Bxc3 {[%emt 0:00:45]} 27. Bxc3 {[%emt 0:02:06]} Bxd5 {[%emt 0:00:23]} 28. Bxf6 {[%emt 0:01:03]} gxf6 {[%emt 0:00:06]} 29. Rd1 {[%emt 0:00:23]} Be6 {[%emt 0:00:10]} 30. Rxd7 {[%emt 0:00:04]} Bxd7 {[%emt 0:00:03]} 31. Kf1 {[%emt 0:00:17]} Kf8 {[%emt 0:01:42]} 32. Ke2 {[%emt 0:00:16]} Be6 {[%emt 0:00:32]} 33. Ke3 {[%emt 0:00:22]} Ke7 {[%emt 0:00:20]} 34. Kd4 {[%emt 0:00:09]} Kd6 {[%emt 0:00:10]} 35. Bf1 {[%emt 0:00:15]} Bf5 {[%emt 0:01:02]} 36. Bxc4 {[%emt 0:00:11]} Bg6 {[%emt 0:00:03]} 37. f4 {[%emt 0:00:39]} h6 {[%emt 0:00:50]} 38. b4 {[%emt 0:00:23]} Kc6 {[%emt 0:00:04]} 39. b5+ {[%emt 0:01:28]} Kb6 {[%emt 0:00:05]} 40. Kd5 {[%emt 0:00:00]} Bf5 {[%emt 0:00:00]} 41. Kd6 {[%emt 0:00:00]} Bg4 {[%emt 0:00:00]} 42. Ke7 {[%emt 0:00:00]} Kc5 {[%emt 0:00:00]} 43. Bxf7 {[%emt 0:00:00]} Kxb5 {[%emt 0:00:00]} 44. Kxf6 {[%emt 0:00:00]} Kc6 {[%emt 0:00:00]} 45. Kg7 {[%emt 0:00:00]} h5 {[%emt 0:00:00]} 46. h4 {[%emt 0:00:00] Kd5} 1-0

[Event "47th GRE-chT 2019"]
[Site "Patra"]
[Date "2019.07.04"]
[Round "4.26"]
[White "Stratigi, Evangelia"]
[Black "Petraki, Evaggelia"]
[Result "1-0"]
[ECO "B73"]
[WhiteElo "1624"]
[BlackElo "1785"]
[Annotator "NA"]
[PlyCount "145"]
[EventDate "2019.07.02"]
[EventCountry "GRE"]
[SourceTitle "playchess.com"]
[Source "ChessBase"]
[SourceQuality "1"]
[TimeControl "5400+30"]

1. e4 {[%emt 0:00:00]} c5 {[%emt 0:00:00]} 2. Nf3 {[%emt 0:00:00]} Nc6 {[%emt 0:00:00]} 3. d4 {[%emt 0:00:00]} cxd4 {[%emt 0:00:00]} 4. Nxd4 {[%emt 0:00:00]} Nf6 {[%emt 0:01:15]} 5. Nc3 {[%emt 0:02:26]} g6 {[%emt 0:02:22]} 6. Be3 {[%emt 0:01:00]} d6 {[%emt 0:01:33]} 7. Be2 {[%emt 0:00:13]} Bg7 {[%emt 0:00:55]} 8. O-O {[%emt 0:00:23]} O-O {[%emt 0:01:51]} 9. Qd2 {[%emt 0:00:34]} Bd7 {[%emt 0:04:09]} 10. f3 {[%emt 0:04:39]} a6 {[%emt 0:05:06]} 11. Rfd1 {[%emt 0:02:45]} Rc8 {[%emt 0:06:01]} 12. Rac1 {[%emt 0:02:23]} Ne5 {[%emt 0:05:42]} 13. b3 {[%emt 0:07:43]} Re8 {[%emt 0:03:41]} 14. Nd5 {[%emt 0:26:44]} Nc6 {[%emt 0:04:27]} 15. c4 {[%emt 0:06:36]} Nxd4 {[%emt 0:00:28]} 16. Bxd4 {[%emt 0:00:23]} Nxd5 {[%emt 0:00:54]} 17. cxd5 {[%emt 0:00:14]} Bxd4+ {[%emt 0:00:41]} 18. Qxd4 {[%emt 0:01:15]} Qa5 {[%emt 0:05:15]} 19. a4 {[%emt 0:14:07]} e5 {[%emt 0:05:56]} 20. dxe6 {[%emt 0:00:04]} Bxe6 {[%emt 0:02:32]} 21. Bc4 {[%emt 0:06:18]} Qb4 {[%emt 0:09:41]} 22. Qd3 {[%emt 0:02:33]} Bxc4 {[%emt 0:00:22]} 23. Rxc4 {[%emt 0:01:27]} Rxc4 {[%emt 0:01:15]} 24. Qxc4 {[%emt 0:00:21]} Qxc4 {[%emt 0:00:08]} 25. bxc4 {[%emt 0:00:02]} Rc8 {[%emt 0:13:57]} 26. Rd4 {[%emt 0:04:11]} Rc6 {[%emt 0:05:52]} 27. Kf2 {[%emt 0:01:31]} Kf8 {[%emt 0:01:42]} 28. Ke3 {[%emt 0:00:03]} Ke7 {[%emt 0:01:13]} 29. Kd3 {[%emt 0:04:15]} Ke6 {[%emt 0:03:06]} 30. Rd5 {[%emt 0:03:44]} h6 {[%emt 0:01:29]} 31. a5 {[%emt 0:05:28]} Rc8 {[%emt 0:02:35]} 32. f4 {[%emt 0:03:11]} f6 {[%emt 0:04:11]} 33. Kd4 {[%emt 0:01:09]} g5 {[%emt 0:01:19]} 34. f5+ {[%emt 0:00:05]} Ke7 {[%emt 0:01:14]} 35. c5 {[%emt 0:00:48]} dxc5+ {[%emt 0:00:13]} 36. Rxc5 {[%emt 0:00:25]} Rd8+ {[%emt 0:01:22]} 37. Rd5 {[%emt 0:00:08]} Rc8 {[%emt 0:00:53]} 38. Rc5 {[%emt 0:00:06]} Rd8+ {[%emt 0:03:30]} 39. Rd5 {[%emt 0:00:06]} Rc8 {[%emt 0:01:23]} 40. e5 {[%emt 0:00:00]} fxe5+ {[%emt 0:00:00]} 41. Rxe5+ {[%emt 0:00:00]} Kf6 {[%emt 0:00:00]} 42. g4 {[%emt 0:00:00]} Rc7 {[%emt 0:00:00]} 43. Re6+ {[%emt 0:00:00]} Kg7 {[%emt 0:00:00]} 44. Kd5 {[%emt 0:00:00]} Rd7+ {[%emt 0:00:00]} 45. Rd6 {[%emt 0:00:00]} Rc7 {[%emt 0:00:00]} 46. Ke6 {[%emt 0:00:00]} Rc4 {[%emt 0:00:00]} 47. Rd7+ {[%emt 0:00:00]} Kg8 {[%emt 0:00:00]} 48. Rxb7 {[%emt 0:00:00]} Rxg4 {[%emt 0:00:00]} 49. Ra7 {[%emt 0:00:01]} Rf4 {[%emt 0:00:00]} 50. Rxa6 {[%emt 0:00:24]} h5 {[%emt 0:00:00]} 51. Kf6 {[%emt 0:00:45]} g4 {[%emt 0:00:00]} 52. Kg6 {[%emt 0:00:09]} Kf8 {[%emt 0:00:00]} 53. Kxh5 {[%emt 0:02:14]} Rxf5+ {[%emt 0:00:00]} 54. Kxg4 {[%emt 0:01:44]} Rb5 {[%emt 0:00:00]} 55. Rf6+ {[%emt 0:02:06]} Kg7 {[%emt 0:00:00]} 56. Rf5 {[%emt 0:00:38]} Rb2 {[%emt 0:00:00]} 57. h4 {[%emt 0:00:31]} Rg2+ {[%emt 0:00:00]} 58. Kf4 {[%emt 0:01:06]} Rf2+ {[%emt 0:00:00]} 59. Ke5 {[%emt 0:01:43]} Rd2 {[%emt 0:00:00]} 60. Ke6 {[%emt 0:00:40]} Kg6 {[%emt 0:00:00]} 61. h5+ {[%emt 0:00:05]} Kh6 {[%emt 0:00:00]} 62. Rd5 {[%emt 0:00:51]} Rc2 {[%emt 0:00:00]} 63. Kd6 {[%emt 0:00:34]} Rf2 {[%emt 0:00:00]} 64. Kc6 {[%emt 0:00:35]} Rb2 {[%emt 0:00:00]} 65. a6 {[%emt 0:00:04]} Ra2 {[%emt 0:00:00]} 66. Kb6 {[%emt 0:00:04]} Rb2+ {[%emt 0:00:20]} 67. Rb5 {[%emt 0:00:02]} Rf2 {[%emt 0:01:20]} 68. a7 {[%emt 0:00:04]} Rf6+ {[%emt 0:00:11]} 69. Ka5 {[%emt 0:00:05]} Rf8 {[%emt 0:00:23]} 70. Ka6 {[%emt 0:02:10]} Kh7 {[%emt 0:00:29]} 71. Rc5 {[%emt 0:01:30]} Kh6 {[%emt 0:04:39]} 72. Ka5 Rf7 {[%emt 0:00:08]} 73. Kb6 {[%emt 0:00:15]} 1-0

[Event "47th GRE-chT 2019"]
[Site "Patra"]
[Date "2019.07.04"]
[Round "4.27"]
[White "Tsivelekidou, Anthoula Elpida"]
[Black "Kaliontzaki, Argyro Evanthia"]
[Result "1/2-1/2"]
[ECO "E11"]
[WhiteElo "1298"]
[BlackElo "1324"]
[Annotator "NA"]
[PlyCount "93"]
[EventDate "2019.07.02"]
[EventCountry "GRE"]
[SourceTitle "playchess.com"]
[Source "ChessBase"]
[SourceQuality "1"]
[TimeControl "5400+30"]

1. d4 {[%emt 0:00:00]} Nf6 {[%emt 0:00:00]} 2. c4 {[%emt 0:00:00]} e6 {[%emt 0:00:00]} 3. Nf3 {[%emt 0:00:00]} Bb4+ {[%emt 0:00:00]} 4. Bd2 {[%emt 0:00:00]} a5 {[%emt 0:00:00]} 5. a3 {[%emt 0:00:00]} Bxd2+ {[%emt 0:00:41]} 6. Qxd2 {[%emt 0:00:00]} b6 {[%emt 0:02:39]} 7. e3 {[%emt 0:00:53]} Bb7 {[%emt 0:01:02]} 8. Be2 {[%emt 0:00:21]} O-O {[%emt 0:01:13]} 9. Nc3 {[%emt 0:00:19]} d5 {[%emt 0:03:00]} 10. cxd5 {[%emt 0:01:24]} exd5 {[%emt 0:01:41]} 11. O-O {[%emt 0:00:25]} Nbd7 {[%emt 0:03:15]} 12. b4 {[%emt 0:02:06]} axb4 {[%emt 0:10:02]} 13. axb4 {[%emt 0:00:09]} Qe7 {[%emt 0:00:46]} 14. b5 {[%emt 0:00:24]} Ra3 {[%emt 0:08:25]} 15. Qb2 {[%emt 0:04:08]} Rfa8 {[%emt 0:03:31]} 16. Rfc1 {[%emt 0:01:25]} h6 {[%emt 0:16:07]} 17. Ra2 {[%emt 0:44:13]} Ne4 {[%emt 0:09:14]} 18. Rca1 {[%emt 0:04:55]} Rxa2 {[%emt 0:07:26]} 19. Rxa2 {[%emt 0:00:20]} Qe8 {[%emt 0:12:44]} 20. Nxe4 {[%emt 0:01:47]} dxe4 {[%emt 0:00:23]} 21. Nd2 {[%emt 0:00:12]} Bd5 {[%emt 0:04:34]} 22. Ra3 {[%emt 0:02:53]} Nf6 {[%emt 0:02:14]} 23. Qc3 {[%emt 0:02:17]} Rxa3 {[%emt 0:03:19]} 24. Qxa3 {[%emt 0:00:08]} Qa8 {[%emt 0:00:52]} 25. Qxa8+ {[%emt 0:07:33]} Bxa8 {[%emt 0:00:05]} 26. Bc4 {[%emt 0:02:31]} Bd5 {[%emt 0:01:13]} 27. Bxd5 {[%emt 0:02:33]} Nxd5 {[%emt 0:00:07]} 28. Nxe4 {[%emt 0:00:48]} f5 {[%emt 0:02:11]} 29. Ng3 {[%emt 0:00:04]} g6 {[%emt 0:00:31]} 30. Ne2 {[%emt 0:00:04]} Kf7 {[%emt 0:00:14]} 31. Kf1 {[%emt 0:00:06]} Ke6 {[%emt 0:01:55]} 32. Ke1 {[%emt 0:00:26]} Kd6 {[%emt 0:02:21]} 33. Kd2 {[%emt 0:00:23]} c6 {[%emt 0:01:12]} 34. bxc6 {[%emt 0:01:23]} Kxc6 {[%emt 0:00:05]} 35. Kc2 {[%emt 0:01:59]} Nf6 {[%emt 0:01:53]} 36. h3 {[%emt 0:01:04]} g5 {[%emt 0:01:23]} 37. Kd3 {[%emt 0:02:38]} Kd5 {[%emt 0:01:09]} 38. Nc3+ {[%emt 0:00:19]} Kc6 {[%emt 0:00:08]} 39. Kc4 {[%emt 0:01:02]} Kd6 {[%emt 0:00:55]} 40. Kb5 {[%emt 0:00:00]} Nd7 {[%emt 0:00:00]} 41. Na4 {[%emt 0:00:00]} Kc7 {[%emt 0:00:00]} 42. Nb2 {[%emt 0:00:00]} Nf6 {[%emt 0:00:00]} 43. Nc4 {[%emt 0:00:00]} Nd5 {[%emt 0:00:00]} 44. f3 {[%emt 0:00:00]} Nc3+ {[%emt 0:00:00]} 45. Kb4 {[%emt 0:00:00]} Nd5+ {[%emt 0:00:00]} 46. Kb5 {[%emt 0:00:00]} Nc3+ {[%emt 0:21:22]} 47. Kb4 {[%emt 0:10:55]} 1/2-1/2

[Event "47th GRE-chT 2019"]
[Site "Patra"]
[Date "2019.07.04"]
[Round "4.28"]
[White "Karousos-Theodorakis, Nikolaos"]
[Black "Ioannidis, Evgenios"]
[Result "1-0"]
[ECO "B31"]
[WhiteElo "2304"]
[BlackElo "2378"]
[Annotator "NA"]
[PlyCount "65"]
[EventDate "2019.07.02"]
[EventCountry "GRE"]
[SourceTitle "playchess.com"]
[Source "ChessBase"]
[SourceQuality "1"]
[TimeControl "5400+30"]

1. e4 {[%emt 0:00:00]} c5 {[%emt 0:00:00]} 2. Nf3 {[%emt 0:00:08]} Nc6 {[%emt 0:00:00]} 3. Bb5 {[%emt 0:00:25]} g6 {[%emt 0:00:24]} 4. O-O {[%emt 0:00:12]} Bg7 {[%emt 0:00:05]} 5. c3 {[%emt 0:00:19]} Nf6 {[%emt 0:00:18]} 6. Re1 {[%emt 0:00:27]} O-O {[%emt 0:00:28]} 7. h3 {[%emt 0:06:53]} Ne8 {[%emt 0:03:28]} 8. d4 {[%emt 0:04:19]} cxd4 {[%emt 0:00:16]} 9. cxd4 {[%emt 0:00:05]} Nc7 {[%emt 0:02:22]} 10. Bxc6 {[%emt 0:00:55]} bxc6 {[%emt 0:00:45]} 11. Nc3 {[%emt 0:06:24]} Rb8 {[%emt 0:04:41]} 12. b3 {[%emt 0:15:56]} c5 {[%emt 0:06:43]} 13. Be3 {[%emt 0:08:03]} f5 {[%emt 0:27:41]} 14. exf5 {[%emt 0:00:46]} Rxf5 {[%emt 0:00:31]} 15. Rc1 {[%emt 0:10:25]} Bb7 {[%emt 0:03:30]} 16. dxc5 {[%emt 0:00:07]} Bxf3 {[%emt 0:00:05]} 17. gxf3 {[%emt 0:00:26]} Bxc3 {[%emt 0:00:16]} 18. Rxc3 {[%emt 0:00:06]} Nd5 {[%emt 0:04:29]} 19. Rc4 {[%emt 0:00:27]} e6 {[%emt 0:18:23]} 20. Bc1 {[%emt 0:15:28]} Qa5 {[%emt 0:04:03]} 21. Qd2 {[%emt 0:06:45]} Qc7 {[%emt 0:01:55]} 22. Bb2 {[%emt 0:05:11]} Rxf3 {[%emt 0:04:09]} 23. Be5 {[%emt 0:00:04]} Qb7 {[%emt 0:02:30]} 24. Qh6 {[%emt 0:04:36]} d6 {[%emt 0:01:58]} 25. cxd6 {[%emt 0:01:23]} Qf7 {[%emt 0:01:31]} 26. d7 {[%emt 0:00:15]} Rf8 {[%emt 0:01:12]} 27. Qxf8+ {[%emt 0:00:03]} Qxf8 {[%emt 0:00:07]} 28. Rc8 {[%emt 0:00:01]} Nb6 {[%emt 0:01:44]} 29. Rxf8+ {[%emt 0:00:04]} Rxf8 {[%emt 0:02:39]} 30. Bc7 {[%emt 0:00:07]} Nxd7 31. Re3 {[%emt 3:08:06]} e5 {[%emt 0:00:36]} 32. Rxe5 Rc8 {[%emt 0:01:11]} 33. Re6 {[%emt 0:00:00]} 1-0

[Event "47th GRE-chT 2019"]
[Site "Patra"]
[Date "2019.07.04"]
[Round "4.29"]
[White "Gavriil, Odysseas-Panagiotis"]
[Black "Damianou, Ioannis"]
[Result "1/2-1/2"]
[ECO "E17"]
[WhiteElo "2038"]
[BlackElo "2154"]
[Annotator "NA"]
[PlyCount "80"]
[EventDate "2019.07.02"]
[EventCountry "GRE"]
[SourceTitle "playchess.com"]
[Source "ChessBase"]
[SourceQuality "1"]
[TimeControl "5400+30"]

1. c4 {[%emt 0:00:00]} b6 {[%emt 0:00:00]} 2. g3 {[%emt 0:01:23]} Bb7 {[%emt 0:00:00]} 3. Nf3 {[%emt 0:00:07]} Nf6 {[%emt 0:00:27]} 4. Bg2 {[%emt 0:00:18]} e6 {[%emt 0:00:22]} 5. O-O {[%emt 0:00:22]} Be7 {[%emt 0:00:18]} 6. d4 {[%emt 0:00:11]} O-O {[%emt 0:00:15]} 7. d5 {[%emt 0:00:04]} exd5 {[%emt 0:02:03]} 8. Nh4 {[%emt 0:00:05]} c6 {[%emt 0:02:13]} 9. cxd5 {[%emt 0:02:41]} Nxd5 {[%emt 0:01:45]} 10. Nf5 {[%emt 0:00:06]} Nc7 {[%emt 0:09:57]} 11. Bf4 {[%emt 0:04:33]} d5 {[%emt 0:04:47]} 12. e4 {[%emt 0:00:06]} Ne6 {[%emt 0:22:25]} 13. Qg4 {[%emt 0:09:04]} Nd7 {[%emt 0:05:26]} 14. exd5 {[%emt 0:17:17]} cxd5 {[%emt 0:03:42]} 15. Nc3 {[%emt 0:06:50]} g6 {[%emt 0:15:48]} 16. Nh6+ {[%emt 0:17:02]} Kg7 {[%emt 0:00:11]} 17. Nf5+ {[%emt 0:00:31]} Kh8 {[%emt 0:04:26]} 18. Nxe7 {[%emt 0:04:11]} Qxe7 {[%emt 0:00:16]} 19. Bxd5 {[%emt 0:03:31] f5} f5 {[%emt 0:07:06]} 20. Qe2 {[%emt 0:05:43]} Bxd5 {[%emt 0:00:11]} 21. Nxd5 {[%emt 0:00:06]} Qf7 {[%emt 0:00:07]} 22. Be5+ {[%emt 0:06:51]} Kg8 {[%emt 0:04:13]} 23. Bc3 {[%emt 0:05:37]} Rfe8 {[%emt 0:05:24]} 24. Qd2 {[%emt 0:03:52]} Rad8 {[%emt 0:02:34]} 25. Rad1 {[%emt 0:00:33]} Nec5 {[%emt 0:02:28]} 26. f3 {[%emt 0:04:25]} Na4 {[%emt 0:01:15]} 27. Rfe1 {[%emt 0:01:57]} Nxc3 {[%emt 0:00:52]} 28. Nxc3 {[%emt 0:01:33]} Rxe1+ {[%emt 0:01:46]} 29. Rxe1 {[%emt 0:00:41]} Re8 {[%emt 0:00:39]} 30. Rxe8+ {[%emt 0:01:22]} Qxe8 {[%emt 0:00:01]} 31. Qd5+ {[%emt 0:00:01]} Kg7 {[%emt 0:00:53]} 32. Kf2 {[%emt 0:00:40]} Qc8 {[%emt 0:02:21]} 33. Qd4+ {[%emt 0:01:57]} Kf7 {[%emt 0:00:06]} 34. Qd5+ {[%emt 0:01:34]} Ke7 {[%emt 0:00:26]} 35. Ke2 {[%emt 0:01:40]} Nf6 {[%emt 0:00:51]} 36. Qd3 {[%emt 0:00:19]} Qe6+ {[%emt 0:00:19]} 37. Qe3 {[%emt 0:00:28]} Kd7 {[%emt 0:01:20]} 38. Kd2 {[%emt 0:00:25]} Qc6 {[%emt 0:00:52]} 39. Qd4+ {[%emt 0:00:30]} Ke7 {[%emt 0:00:10]} 40. Ke2 {[%emt 0:00:00]} Kf7 {[%emt 0:00:00]} 1/2-1/2

[Event "47th GRE-chT 2019"]
[Site "Patra"]
[Date "2019.07.04"]
[Round "4.30"]
[White "Christodoulakis, Michail"]
[Black "Karamichos, Michail"]
[Result "1/2-1/2"]
[ECO "B13"]
[WhiteElo "1224"]
[BlackElo "1559"]
[Annotator "NA"]
[PlyCount "94"]
[EventDate "2019.07.02"]
[EventCountry "GRE"]
[SourceTitle "playchess.com"]
[Source "ChessBase"]
[SourceQuality "1"]
[TimeControl "5400+30"]

1. e4 {[%emt 0:00:00]} c6 {[%emt 0:00:00]} 2. d4 {[%emt 0:00:00]} d5 {[%emt 0:00:00]} 3. exd5 {[%emt 0:00:00]} cxd5 {[%emt 0:00:36]} 4. Nf3 {[%emt 0:00:34]} Nc6 {[%emt 0:03:41]} 5. Bf4 {[%emt 0:01:57]} Bg4 {[%emt 0:05:58]} 6. Nbd2 {[%emt 0:04:03]} e6 {[%emt 0:04:43]} 7. c3 {[%emt 0:01:23]} Nf6 {[%emt 0:02:23]} 8. Qb3 {[%emt 0:04:21]} Qc8 {[%emt 0:03:45]} 9. Bd3 {[%emt 0:00:57]} Be7 {[%emt 0:03:21]} 10. O-O {[%emt 0:00:45]} O-O {[%emt 0:09:55]} 11. Qc2 {[%emt 0:09:55]} Bh5 {[%emt 0:12:51]} 12. Bg5 {[%emt 0:01:07]} Bg6 {[%emt 0:01:31]} 13. Ne5 {[%emt 0:06:25]} Nxd4 {[%emt 0:01:13]} 14. Nxg6 {[%emt 0:01:33]} Nxc2 {[%emt 0:00:08]} 15. Nxe7+ {[%emt 0:00:05]} Kh8 {[%emt 0:00:10]} 16. Nxc8 {[%emt 0:00:28]} Nxa1 {[%emt 0:00:41]} 17. Nd6 {[%emt 0:10:18]} a6 {[%emt 0:06:57]} 18. Bxf6 {[%emt 0:00:11]} gxf6 {[%emt 0:00:16]} 19. Rxa1 {[%emt 0:00:47]} b6 {[%emt 0:01:30]} 20. Re1 {[%emt 0:00:54]} Kg7 {[%emt 0:08:20]} 21. c4 {[%emt 0:02:51]} Rfd8 {[%emt 0:01:39]} 22. c5 {[%emt 0:01:03]} bxc5 {[%emt 0:00:14]} 23. Nb7 {[%emt 0:05:04]} Rdb8 {[%emt 0:00:20]} 24. Nxc5 {[%emt 0:00:06]} Rxb2 {[%emt 0:00:28]} 25. Ndb3 {[%emt 0:00:25]} Rxa2 {[%emt 0:00:43]} 26. Ra1 {[%emt 0:00:08]} Rxa1+ {[%emt 0:00:05]} 27. Nxa1 {[%emt 0:00:36]} Rc8 {[%emt 0:03:39]} 28. Nab3 {[%emt 0:00:34]} a5 {[%emt 0:01:07]} 29. Kf1 {[%emt 0:01:28]} e5 {[%emt 0:02:30]} 30. f3 {[%emt 0:07:02]} h6 {[%emt 0:04:55]} 31. Ke2 {[%emt 0:01:45]} Kf8 {[%emt 0:04:23]} 32. Na4 {[%emt 0:04:42]} Rb8 {[%emt 0:01:22]} 33. Bc2 {[%emt 0:03:32]} Rb5 {[%emt 0:00:54]} 34. Nc3 {[%emt 0:01:07]} Rb8 {[%emt 0:04:38]} 35. Nxd5 {[%emt 0:00:58]} a4 {[%emt 0:00:16]} 36. Nxf6 {[%emt 0:06:39]} Ke7 {[%emt 0:07:41]} 37. Nc5 {[%emt 0:01:22]} Rb2 {[%emt 0:03:09]} 38. Kd3 {[%emt 0:10:13]} a3 {[%emt 0:02:01]} 39. Kc3 {[%emt 0:01:09]} Kxf6 {[%emt 0:00:00]} 40. Nb3 {[%emt 0:00:00]} Kg5 {[%emt 0:00:00]} 41. g3 {[%emt 0:00:00]} f5 {[%emt 0:00:00]} 42. h4+ {[%emt 0:00:00]} Kf6 {[%emt 0:00:00]} 43. Na1 {[%emt 0:00:00]} Rb7 {[%emt 0:00:00]} 44. g4 {[%emt 0:00:00]} e4 {[%emt 0:00:00]} 45. g5+ {[%emt 0:00:00]} hxg5 {[%emt 0:00:00]} 46. hxg5+ {[%emt 0:00:00]} Kxg5 {[%emt 0:00:00]} 47. fxe4 {[%emt 0:00:00]} f4 {[%emt 2:34:40]} 1/2-1/2

[Event "47th GRE-chT 2019"]
[Site "Patra"]
[Date "2019.07.04"]
[Round "4.31"]
[White "David, Alberto"]
[Black "Nedev, Trajko"]
[Result "1/2-1/2"]
[ECO "B31"]
[WhiteElo "2553"]
[BlackElo "2495"]
[Annotator "ChessBase"]
[PlyCount "134"]
[EventDate "2019.07.02"]
[EventCountry "GRE"]
[SourceTitle "playchess.com"]
[Source "ChessBase"]
[SourceQuality "1"]
[TimeControl "5400+30"]

1. e4 {[%emt 0:00:00]} c5 {[%emt 0:00:00]} 2. Nf3 {[%emt 0:00:00]} Nc6 {[%emt 0:00:00]} 3. Bb5 {[%emt 0:00:00]} g6 {[%emt 0:00:00]} 4. Bxc6 {[%emt 0:00:17]} dxc6 {[%emt 0:00:00]} 5. d3 {[%emt 0:00:12]} Bg7 {[%emt 0:00:00]} 6. h3 {[%emt 0:00:09]} Nf6 {[%emt 0:00:12]} 7. Nc3 {[%emt 0:00:20]} Nd7 {[%emt 0:00:10]} 8. Be3 {[%emt 0:01:12]} e5 {[%emt 0:00:05]} 9. Qd2 {[%emt 0:00:26]} h6 {[%emt 0:00:07]} 10. O-O {[%emt 0:02:05]} b6 {[%emt 0:00:27]} 11. Nh2 {[%emt 0:11:35]} Nf8 {[%emt 0:00:09]} 12. f4 {[%emt 0:00:46]} exf4 {[%emt 0:00:06]} 13. Rxf4 {[%emt 0:10:51]} Be6 {[%emt 0:00:32]} 14. Raf1 {[%emt 0:04:07]} g5 {[%emt 0:08:16]} 15. R4f2 {[%emt 0:06:43]} Qc7 {[%emt 0:00:41]} 16. b3 {[%emt 0:05:58]} O-O-O {[%emt 0:02:42]} 17. a4 {[%emt 0:04:49]} a5 {[%emt 0:01:56]} 18. Ne2 {[%emt 0:03:04]} Ng6 {[%emt 0:01:45]} 19. Qe1 {[%emt 0:01:57]} Rhg8 {[%emt 0:17:32]} 20. Kh1 {[%emt 0:05:19]} Bh8 {[%emt 0:10:38]} 21. Rg1 {[%emt 0:08:53]} Nh4 {[%emt 0:10:00]} 22. g3 {[%emt 0:08:58]} Ng6 {[%emt 0:00:53]} 23. g4 {[%emt 0:02:07]} Nh4 {[%emt 0:02:23]} 24. Qf1 {[%emt 0:14:41]} Be5 {[%emt 0:07:57]} 25. Nf3 {[%emt 0:00:05]} Nxf3 {[%emt 0:00:32]} 26. Rxf3 {[%emt 0:00:06]} h5 {[%emt 0:03:55]} 27. gxh5 {[%emt 0:00:24]} f6 {[%emt 0:00:57]} 28. Qf2 {[%emt 0:08:17]} Qh7 {[%emt 0:06:29]} 29. Ng3 {[%emt 0:00:29]} Bxh3 {[%emt 0:00:17]} 30. Rxf6 {[%emt 0:00:35]} Bxf6 {[%emt 0:00:49]} 31. Qxf6 {[%emt 0:00:02]} Kb7 {[%emt 0:04:00]} 32. Bxg5 {[%emt 0:00:02]} Rdf8 {[%emt 0:00:35]} 33. Qe7+ {[%emt 0:01:23]} Qxe7 {[%emt 0:00:05]} 34. Bxe7 {[%emt 0:00:03]} Rf2 {[%emt 0:00:14]} 35. Nf5 {[%emt 0:01:02]} Bg2+ {[%emt 0:01:23]} 36. Rxg2 {[%emt 0:00:07]} Rgxg2 {[%emt 0:00:11]} 37. Bd6 {[%emt 0:00:54]} Rg5 {[%emt 0:01:11]} 38. h6 {[%emt 0:00:12]} Rfxf5 {[%emt 0:09:53]} 39. exf5 {[%emt 0:00:05]} Rxf5 {[%emt 0:00:03]} 40. Kg2 {[%emt 0:00:00]} Rf6 {[%emt 0:00:00]} 41. h7 {[%emt 0:00:00]} Rh6 {[%emt 0:00:00]} 42. Kf3 {[%emt 0:00:00]} Rxh7 {[%emt 0:00:00]} 43. Ke2 {[%emt 0:00:00]} Rh6 {[%emt 0:00:00]} 44. Bf4 {[%emt 0:00:00]} Rf6 {[%emt 0:00:00]} 45. Bd2 {[%emt 0:00:00]} Rg6 {[%emt 0:00:00]} 46. Be3 {[%emt 0:00:00]} Rg2+ {[%emt 0:00:00]} 47. Kd1 {[%emt 0:00:00]} Kc8 {[%emt 0:00:00]} 48. Kc1 {[%emt 0:00:00]} Kd7 {[%emt 0:00:00]} 49. c4 {[%emt 0:00:00]} Ke6 {[%emt 0:00:00]} 50. Bd2 {[%emt 0:00:00]} Ke5 {[%emt 0:00:00]} 51. Bc3+ {[%emt 0:00:00]} Kf4 {[%emt 0:00:00]} 52. d4 {[%emt 0:00:00]} cxd4 {[%emt 0:00:00]} 53. Bxd4 {[%emt 0:00:00]} c5 {[%emt 0:00:00]} 54. Bh8 {[%emt 0:00:50]} Ke3 {[%emt 0:00:00]} 55. Be5 {[%emt 0:04:02]} Kd3 {[%emt 0:00:00]} 56. Bh8 {[%emt 0:01:11]} Rg8 {[%emt 0:00:20]} 57. Be5 {[%emt 0:00:13]} Re8 {[%emt 0:00:11]} 58. Bf6 {[%emt 0:00:27]} Re6 {[%emt 0:00:30]} 59. Bg7 {[%emt 0:00:04]} b5 {[%emt 0:02:19]} 60. axb5 {[%emt 0:00:09]} a4 {[%emt 0:00:06]} 61. bxa4 {[%emt 0:04:26]} Kxc4 {[%emt 0:00:12]} 62. Bf8 {[%emt 0:00:36]} Rf6 {[%emt 0:01:47]} 63. Be7 {[%emt 0:00:11]} Rf7 {[%emt 0:00:48]} 64. Bd6 {[%emt 0:00:25]} Rf6 {[%emt 0:04:46]} 65. Bc7 {[%emt 0:00:54]} Rf1+ {[%emt 0:08:53]} 66. Kd2 {[%emt 0:00:05]} Ra1 {[%emt 0:04:03]} 67. b6 {[%emt 0:00:12]} Rxa4 {[%emt 0:00:02]} 1/2-1/2